Cogmind - Beta 13 @@@ ROGUE MODE // 2024.07.25 @ 17:19:03 Player: N.W.L Result: Destroyed by KI-FZ6(R) with Subdweller Laser Performance ------------- Evolutions (0) 0 Regions Visited (2) 400 Robots Destroyed (44) 220 Value Destroyed (987) 987 Prototype IDs (10) 200 Alien Tech Used (0) 0 Bonus (0) 0 TOTAL SCORE: 1807 Bonus ------- None Cogmind --------- Core Integrity 0/250 Matter 241/300 Energy 78/100 System Corruption 0% Temperature Warm (150) Movement Treading (160) Location -10/Subcaves Parts ------- > --- POWER (1) -------- (None) > --- PROPULSION (2) --- Light Treads Spiked Treads > --- UTILITY (2) ------ (None) > --- WEAPON (2) ------- Heavy Battle Rifle Battle Cannon > --- INVENTORY (5) ---- High-capacity Matter Pod (200) Rainbow Chip Subdweller Shrapnel Launcher Multitool Makeshift Axe Peak State ------------ > --- POWER ------------ Subdweller Power Source > --- PROPULSION ------- Light Treads Subdweller Monowheel > --- UTILITY ---------- Scrap Shield > --- WEAPON ----------- Heavy Battle Rifle Makeshift Axe > --- INVENTORY -------- High-capacity Matter Pod Subdweller Machine Gun Battle Cannon Subdweller Shrapnel Launcher Multitool [Rating: 17] Favorites ----------- Power Subdweller Power Source Engine Subdweller Power Source Propulsion Light Treads Treads Light Treads Wheel Subdweller Monowheel Utility Small Storage Unit Device Seismic Detector Storage Small Storage Unit Protection Scrap Shield Weapon Assault Rifle Energy Gun Riot Gun Ballistic Gun Assault Rifle Ballistic Cannon Battle Cannon Launcher Grenade Launcher Special Weapon Mining Laser Slashing Weapon Makeshift Axe Build | -11 -10 -10 ------- Run | Yrd Mat Sub Slots Evolved . | . . . Power . | . . . Propulsion . | . . . Utility . | . . . Weapon . | . . . Parts Attached 54 | 7 6 41 Power 4 | 1 1 2 Engine 4 | 1 1 2 Core . | . . . Reactor . | . . . Propulsion 10 | 2 1 7 Treads 8 | 2 1 5 Leg . | . . . Wheel 2 | . . 2 Hover . | . . . Flight . | . . . Utility 7 | 2 . 5 Device 2 | 1 . 1 Storage 1 | 1 . . Processor . | . . . Hackware . | . . . Protection 4 | . . 4 Artifact . | . . . Weapon 33 | 2 4 27 Energy Gun 2 | . . 2 Energy Cannon . | . . . Ballistic Gun 13 | 2 1 10 Ballistic Cannon 6 | . 2 4 Launcher 4 | . . 4 Special Weapon 2 | . 1 1 Impact Weapon . | . . . Slashing Weapon 6 | . . 6 Piercing Weapon . | . . . Special Melee Weapon . | . . . Unidentified Prototypes . | . . . Corrupted Parts 1 | . . 1 System Corruption 2 | . . 2 Parts Lost 10 | . 1 9 Power 2 | . 1 1 Propulsion 3 | . . 3 Utility 3 | . . 3 Weapon 2 | . . 2 Highest Loss Streak 3 | . 1 3 To Critical Strikes 1 | . . 1 Average Slot Usage (%) 89 | . 99 86 Engine 12 | . 13 12 Treads 25 | . 28 24 Wheel 2 | . . 2 Device 5 | . 14 2 Storage 7 | . 14 5 Protection 8 | . . 11 Ballistic Gun 13 | . 15 12 Ballistic Cannon 6 | . 10 4 Special Weapon 1 | . 1 . Slashing Weapon 4 | . . 5 Naked Turns . | . . . Heaviest Build 31 | 13 16 31 Greatest Support 40 | 40 40 40 Greatest Overweight (x) 1 | . . 1 Average Overweight (x) . | . . . Largest Inventory Capacity 8 | 8 8 8 Average Capacity 6 | 7 8 6 Most Carried 8 | 4 8 8 Average Carried 6 | 2 6 6 Final Capacity 8 | 8 8 5 Final Carried 8 | 4 8 5 Class Distribution -------------------- 71% | Mutant 28% | Subdweller-Mutant Dominant Class ---------------- Mutant | -10/Materials Mutant | -10/Subcaves Resources | -11 -10 -10 ----------- Run | Yrd Mat Sub Matter Collected 1791 | 360 623 808 Remotely . | . . . Salvage Created 1535 | 217 785 533 Parts 102 | 16 56 30 Haulers Intercepted 2 | . 2 . Recyclers Shooed 3 | . 3 . Parts Field Recycled . | . . . Retrieved Matter . | . . . Parts Self-Destructed 5 | . . 5 Prevented . | . . . Kills | -11 -10 -10 ------- Run | Yrd Mat Sub Combat Hostiles Destroyed 24 | . 11 13 Guns 15 | . 6 9 Cannons 6 | . 5 1 AOE 3 | . . 3 Classes Destroyed 12 | 3 6 3 Worker 3 | 2 1 . Builder 3 | . 3 . Tunneler 5 | 4 1 . Hauler 2 | . 2 . Recycler 4 | 1 3 . Operator 1 | . 1 . Watcher 2 | . 2 . Swarmer 3 | . 3 . Grunt 8 | . 8 . Artisan 1 | . . 1 Cobbler 1 | . . 1 Subdweller 13 | . . 13 Best Kill Streak 7 | 7 6 3 Combat Bots Only 4 | . 4 3 Max Kills in Single Turn 2 | 1 1 2 Gunslinging . | . . . Exploded 1 | . . 1 Melee . | . . . Uniques/NPCs Destroyed . | . . . Combat | -11 -10 -10 -------- Run | Yrd Mat Sub Hostile Shots Fired 113 | . 54 59 Missed 21 | . 14 7 Damage Taken 1830 | . 441 1389 Core 264 | . 57 207 Absorbed by Shields . | . . . Core Remaining (%) 100 | 100 . . Volleys Fired 185 | 15 123 47 Largest 2 | 2 2 2 Hottest 120 | 40 120 100 Shots Fired 315 | 30 211 74 Gun 203 | 30 126 47 Cannon 83 | . 63 20 Launcher 3 | . . 3 Special 26 | . 22 4 Kinetic 277 | 30 189 58 Thermal 26 | . 22 4 Explosive 2 | . . 2 Electromagnetic 10 | . . 10 Robot Hit Streak 17 | 4 17 17 Robot Miss Streak 10 | 3 10 3 Penetration Max . | . . . Secondary Targets 3 | . 2 1 Max Gunslinging Chain 1 | . 1 1 Shots Hit Robots 147 | 9 89 49 Core Hits 70 | 8 35 27 Critical Kills 1 | . . 1 Critical Parts Destroyed . | . . . Critical Strikes 1 | . . 1 Destroy 1 | . . 1 Melee Attacks 79 | . . 79 Impact . | . . . Slashing 79 | . . 79 Piercing . | . . . Sneak Attacks 2 | . . 2 Combat Hostiles . | . . . Follow-up Attacks . | . . . Damage Inflicted 2681 | 136 1417 1128 Guns 1643 | 136 872 635 Cannons 728 | . 544 184 Explosions 251 | . . 251 Melee 58 | . . 58 Ramming 1 | . 1 . Kinetic 2338 | 136 1416 786 Thermal . | . . . Explosive 138 | . . 138 Electromagnetic 146 | . . 146 Impact . | . . . Slashing 58 | . . 58 Piercing . | . . . Highest Corruption 2 | . . 2 Average Corruption 1 | . . 1 Corruption Purged 2 | . . 2 Corruption Blocked . | . . . Effects 2 | . . 2 Matter Fused 1 | . . 1 Energy Discharges 1 | . . 1 Overload Shots . | . . . Overflow Damage . | . . . Projectiles . | . . . Explosions . | . . . Melee . | . . . Knockbacks 8 | . 5 3 Impact . | . . . Kinetic 7 | . 4 3 Secondary 1 | . 1 . Self-Inflicted Damage 46 | . . 46 Shots 1 | . . 1 Rammed 1 | . 1 . Targets Rammed 1 | . 1 . Kicked . | . . . Crushed . | . . . Highest Temperature 429 | . 124 429 Average Temperature 62 | . 39 226 Received Heat Transfer 1195 | . 204 991 Effects 3 | . . 3 Interference 3 | . . 3 Siege Activations . | . . . Robots Corrupted . | . . . Combat Hostiles . | . . . Parts Fried 1 | . . 1 Impact Corruptions . | . . . Robots Melted . | . . . Combat Hostiles . | . . . Parts Melted 1 | . . 1 Heat Transferred . | . . . Parts Sabotaged . | . . . Parts Stolen . | . . . Parts Stripped . | . . . Power Chain Reactions . | . . . Alert | -11 -10 -10 ------- Run | Yrd Mat Sub Peak Influence 298 | 35 298 . Initial 22 | . 22 . Average 111 | 12 125 . Maximum Alert Level 1 | . 1 . Low Security (%) 90 | 100 88 . Level 1 9 | . 11 . Level 2 . | . . . Level 3 . | . . . Level 4 . | . . . Level 5 . | . . . High Security . | . . . Max Security . | . . . Squads Dispatched 3 | . 3 . Investigation 2 | . 2 . Extermination . | . . . Reinforcement 1 | . 1 . Assault . | . . . Garrison . | . . . Intercept . | . . . Searches Triggered . | . . . Construction Impeded . | . . . Haulers Reinforced . | . . . Active Scanning Responses . | . . . Cargo Convoy Interrupts . | . . . Stealth | -11 -10 -10 --------- Run | Yrd Mat Sub Distress Signals 2 | . 2 . Communications Jammed . | . . . Distress Signals . | . . . Times Spotted 41 | . 24 17 Peak Tracking Total 6 | . 6 3 Tactical Retreats 1 | . 1 . Traps | -11 -10 -10 ------- Run | Yrd Mat Sub Traps Triggered 2 | . . 2 Indirectly . | . . . Trap Hack Attempts . | . . . Triggered . | . . . Disarmed . | . . . Reprogrammed . | . . . Reused . | . . . Traps Extracted . | . . . Installed . | . . . Triggered . | . . . Machines | -11 -10 -10 ---------- Run | Yrd Mat Sub Machines Disabled 2 | . 1 1 Max in Single Turn 1 | . 1 1 Machines Repaired . | . . . Machines Dismantled . | . . . Machines Sabotaged . | . . . Overloaded Fab Kills . | . . . Hacking | -11 -10 -10 --------- Run | Yrd Mat Sub Machines Accessed 6 | . 4 2 Terminals 3 | . 3 . Fabricators . | . . . Repair Stations . | . . . Recycling Units 1 | . 1 . Scanalyzers . | . . . Garrison Access . | . . . Total Hacks 15 | . 13 2 Successful 7 | . 5 2 Failed 8 | . 8 . Catastrophic 3 | . 3 . Database Lockouts . | . . . Manual 9 | . 9 . Terminals 10 | . 10 . Fabricators . | . . . Repair Stations . | . . . Recycling Units 3 | . 3 . Scanalyzers . | . . . Garrison Access . | . . . Terminal Hacks 5 | . 3 2 Record 1 | . . 1 Robot Analysis 2 | . 2 . Locate Traps 1 | . 1 . Derelict Proto ID Bank 1 | . . 1 Fabricator Hacks . | . . . Repair Station Hacks . | . . . Recycling Unit Hacks 1 | . 1 . Retrieve Components 1 | . 1 . Scanalyzer . | . . . Garrison Access Hacks . | . . . Unauthorized Hacks 1 | . 1 . Terminals . | . . . Fabricators . | . . . Repair Stations . | . . . Recycling Units 1 | . 1 . Tunnel 1 | . 1 . Scanalyzers . | . . . Garrison Access . | . . . Data Cores Recovered . | . . . Used . | . . . Hacking Detections 4 | . 4 . Full Trace Events 2 | . 2 . Feedback Events . | . . . Feedback Blocked . | . . . Robot Schematics Acquired . | . . . Robots Built . | . . . Authchips . | . . . Time . | . . . Total Robot Build Rating . | . . . Part Schematics Acquired . | . . . Parts Built . | . . . Authchips . | . . . Time . | . . . Total Part Build Rating . | . . . Parts Repaired . | . . . Time . | . . . Parts Recycled . | . . . Recycled Matter . | . . . Retrieved Matter . | . . . Retrieved Components 1 | . 1 . Parts Scanalyzed . | . . . Part Schematics Acquired . | . . . Parts Damaged . | . . . Bothacking | -11 -10 -10 ------------ Run | Yrd Mat Sub Used RIF Installer . | . . . Robots Hacked . | . . . Non-combat . | . . . Combat . | . . . Robot Hacks Applied . | . . . Relay Couplers Released . | . . . Fabnet Peak Effective % . | . . . Robots Rewired . | . . . Allies Hacked . | . . . Hacks Repelled . | . . . Allies | -11 -10 -10 -------- Run | Yrd Mat Sub Total Allies . | . . . Largest Group . | . . . Highest-Rated Group . | . . . Highest-Rated Ally . | . . . Total Orders . | . . . Ally Attacks . | . . . Total Damage . | . . . Kills . | . . . Allies Corrupted . | . . . Allies Melted . | . . . Intel | -11 -10 -10 ------- Run | Yrd Mat Sub Robot Analysis Total 2 | . 2 . Derelict Logs Recovered . | . . . Drone Launches . | . . . Drone Recoveries . | . . . Exploration | -11 -10 -10 ------------- Run | Yrd Mat Sub Turns Passed 4782 | 164 1154 3464 Spaces Moved 2008 | 86 418 1504 Core 29 | 29 . . Treads 1577 | 57 418 1102 Legs . | . . . Wheels 402 | . . 402 Hover . | . . . Flight . | . . . Fastest Speed 50 | 50 160 120 Average Speed 151 | 122 160 151 Slowest Speed 240 | 160 160 240 Overloaded Moves . | . . . Propulsion Burnouts . | . . . Robots Hopped . | . . . Cave-ins Triggered . | . . . Exploration Rate (%) 50 | 5 68 79 Regions Visited 2 Branch Regions 1 Pre-discovered Areas 1 | . 1 . Known Exits Taken . | . . . Unknown Exits Taken 2 | 1 1 . Scrap Searched 13 | . . 13 Spaces Dug 16 | . 3 13 Terrain Destroyed 39 | . 3 36 Melee 13 | . . 13 Projectile 4 | . 3 1 AOE 22 | . . 22 Terrain Rammed . | . . . Walls Destroyed . | . . . Machines Disabled . | . . . Actions | -11 -10 -10 --------- Run | Yrd Mat Sub Total 3285 | 111 647 2527 Wait 909 | . 92 817 Move 2006 | 85 417 1504 Hop . | . . . Pick Up 22 | 4 5 13 Fast Attach 18 | 7 1 10 Attach 7 | . 1 6 Detach 4 | . 1 3 Swap 29 | . 4 25 Drop 19 | . 2 17 Fire 185 | 15 123 47 Melee 79 | . . 79 Ram . | . . . Kick . | . . . Crush 1 | . 1 . Escape Stasis . | . . . Rewire . | . . . Trap . | . . . Miscellaneous 6 | . . 6 Route ------- -11/Scrapyard -10/Materials (discovered 2 exits: [*Min] / *Sub) -10/Subcaves (discovered 1 exit: [*Mat]) History --------- Turn | Location | Event 4 | -11/Scrapyard | Discovered new exit (range 12) 165 | -11/Scrapyard | Entered Materials 309 | -10/Materials | Build established: Mutant 509 | -10/Materials | Discovered new exit (range 12) 1242 | -10/Materials | Discovered new exit (range 3) 1319 | -10/Materials | Entered Subcaves 1498 | -10/Subcaves | Discovered new exit (range 10) 1500 | -10/Subcaves | Shifting Twisted Machinery released Battle Cannon 2354 | -10/Subcaves | Visited Clippyterm 2445 | -10/Subcaves | Core integrity fell below 50% 2489 | -10/Subcaves | Lost 3 parts (1p1n1w) 2727 | -10/Subcaves | Shifting Twisted Machinery released Scrap Shield 2746 | -10/Subcaves | Shifting Twisted Machinery released Sub. Machine Gun 2863 | -10/Subcaves | Core integrity fell below 20% 3056 | -10/Subcaves | Build established: Subdweller-Mutant 3521 | -10/Subcaves | Ambushed by Subdweller buried in earth 3559 | -10/Subcaves | Lost 3 parts (2n1u) 3771 | -10/Subcaves | Shifting Twisted Machinery released Battle Cannon 3780 | -10/Subcaves | Shifting Twisted Machinery released Sub. Machine Gun 3994 | -10/Subcaves | A swath of the cavern ceiling suddenly collapsed 4323 | -10/Subcaves | A swath of the cavern ceiling suddenly collapsed 4669 | -10/Subcaves | Visited 4L-MR0's lab 4671 | -10/Subcaves | Build established: Mutant 4683 | -10/Subcaves | Found Rainbow Chip 4775 | -10/Subcaves | A Subdweller sparked back to life 4775 | -10/Subcaves | A Subdweller sparked back to life 4775 | -10/Subcaves | A Subdweller sparked back to life 4782 | -10/Subcaves | Ambushed by Subdwellers from Twisted Machinery 4783 | -10/Subcaves | Destroyed by KI-FZ6(R) with Subdweller Laser Last Messages --------------- 04677_ Testing Chamber breached. 04681_ 4L-MR0 mumbles: "I'm surprised some of them are even willing to come in here given their fear of my usual visitors." 04683_ Dropped Sub. Machine Gun. 04683_ Acquired Rainbow Chip. 04684_ 4L-MR0 mumbles: "Who knows where that last prototype ended up, probably tossed aside somewhere as if it were useless junk..." 04775_ BD-UB1(R) creaks and sparks as it begins to move. 04775_ 5V-9M1(R) creaks and sparks as it begins to move. 04775_ QV-KMQ(R) creaks and sparks as it begins to move. 04777_ BD-UB1(R) destroyed. 04777_ 6T-W84(O) cries out in pain. 04777_ 6T-W84(O) destroyed. 04778_ Critical hit (Meltdown: +250). 04779_ Overheating: System interference. 04779_ Sub. Shrapnel Launcher temporarily disabled. 04780_ Scrap Shield destroyed. 04781_ 5V-9M1(R) knocked back. 04782_ KI-FZ6(R) emerges from the Twisted Machinery. 04783_ QV-KMQ(R) affixes Scrap Shield Fragment to Scrap Shield. Map ----- +----------------------------------------------------+ | ?????????????????????????????????????????????? | | ?????????????????????????????????????????????? | | ?????????????????????????????????????????????? | | ?????????????????????????????????????????????? | | ?????????????????????????????????????????????? | | ?????????????????????????????????????????????? | | ?????????????????????????????????????????????? | | ?????????????????????????????????????????????? | | ?????????????????????????????????????????????? | | ?????????????????????????????????????????????? | | ?????????????????????????????????????????????? | | ????????????????????"????????????????????????? | | ??????????????????? #???????????????????????? | | ??????????????????? R"???????????????????????? | | ???????????????????? R???????????????????????? | | ????????????????????% ???????????????????????? | | ???????????????????? ???????????????????????? | | ???????????????????? #??????????????????????? | | ???????????????????? #??????????????????????? | | ????????????????????#%#??????????????????????? | | ????????????????????# #??###?"???????????????? | | ???????????????????? ? " ? ????????????????? | | ????????????????????# # "? #????????????????? | | ???????????????????## #;## ;#????????????????? | | ???????????????????#; ;; ;###??????????????? | | ???????????????????#;@ % ##?????????????? | | ???????????????????#; R #?????????????? | | ???????????????#####; # #?????????????? | | ??????????????## ; #??????????????? | | ??????????????# [ ; =! ##??????????????? | | ??????????????## # R% <#???????????????? | | ??????????????# ; ;# & & ?????????????? | | ??????????????## ## ###<# < #?????????????? | | ??????????????# ## #????# #?????????????? | | ??????????????## #####????# #?????????????? | | ??????????????## ## ##???? #??????????????? | | ??????????????# * ##????#??????????????? | | ??????????????# # #???????????????????? | | ??????????????## #### #???????????????????? | | ??????????????# #??? #???????????????????? | | ??????????????# #### #???????????????????? | | ??######??????# ## #???????????????????? | | ??# #""#?????## ## #????????????????????? | | ??#[#""#?????# #?????????????????????? | | ??# ""#?#####" #?????????????????????? | | ??# X"#?# #"" #########?????????????? | | ??# ""#?# # # #?????????????? | | ??#" "#?# ###???????????? | | ??#" "#?# #" ####????????? | | ??###+##### ## # ]# #"#????????? | +----------------------------------------------------+ Best States ------------- Heat Dissipation 25 Energy Generation 15 Energy Capacity 250 Matter Stores 300 Matter Capacity 300 Sight Range 16 Terrain Scan Density 10 Armor Coverage 800 Evasion (%) 50 Recoil Reduction 2 Item Schematics ----------------- None Robot Schematics ------------------ None Fabricated ------------ Nothing Alien Tech Used ----------------- None Achievements -------------- None Challenges ------------ None Game ------ Seed CommAssemblySteel Manual? 0 Play Time 00:29:31 Cumulative 215.6 hours Start 2024.07.25 @ 16:47:31 End 2024.07.25 @ 17:19:03 Sessions 3 Manual Loads 0 Difficulty Rogue Special Mode None Game No. 103 Rogue 103 Adventurer 0 Explorer 0 Win Type - Total 8 Types 4/1/3/0/0/0/0/0/0 Lore% 79 Gallery% 86 Achievement% 67 Wizard Run 0 Options --------- Layout 0 ASCII 0 Keyboard 0 Movement Mouse Keybinds 0 Fullscreen 2 Font 18/SmallcapsGlow Map View 76x50 Zoom Use 0% Tactical HUD 1 Map Filters NONE Filters NONE Steam 1 RUN: acae8cbd-a1c9-4e25-8ce8-ddc78eef1575